bitfinex/quotes_SOLUSD_20251106
["timestamp","ask_amount","ask_price","bid_price","bid_amount"]
[1762431539081,16.06176283,158.77,158.76,0.1]
[1762431539599,21.68018192,158.77,158.76,0.1]
[1762431540000,15.38176283,158.77,158.76,0.1]
[1762431540298,14.34018192,158.77,158.76,0.1]
[1762431540478,22.36018192,158.77,158.76,0.1]
[1762431540671,15.38176283,158.77,158.76,0.1]
[1762431540872,8.04176283,158.77,158.76,0.1]
[1762431541074,7.34,158.77,158.76,0.81]
[1762431541514,7.34,158.77,158.76,7.10881582]
[1762431542078,7.34,158.77,158.76,0.81]
[1762431542280,7.34,158.77,158.76,7.10881582]
[1762431545284,7.34,158.77,158.76,0.81]
[1762431545483,7.34,158.77,158.76,7.10881582]
[1762431545793,7.34,158.77,158.76,0.1]
[1762431545998,15.38176283,158.77,158.76,0.1]
[1762431546609,22.36018192,158.77,158.76,0.1]
[1762431547295,14.31841909,158.77,158.76,0.1]
[1762431547608,22.36018192,158.77,158.76,0.1]
[1762431549802,42.95218192,158.77,158.76,0.1]
[1762431550093,20.592,158.75,158.74,0.1]
[1762431550302,35.97376283,158.75,158.74,0.1]
[1762431550514,36.65376283,158.75,158.74,0.1]
[1762431551309,36.65376283,158.75,158.74,1e-08]
[1762431551499,46.44259052,158.75,158.74,1e-08]
[1762431551709,52.74180311,158.75,158.74,1e-08]
[1762431553600,42.95297542,158.75,158.74,1e-08]
[1762431553914,147.65297542,158.75,158.74,1e-08]
[1762431554417,120.08176283,158.75,158.74,1e-08]
[1762431554612,126.38097542,158.75,158.74,1e-08]
[1762431555299,177.06097542,158.75,158.74,1e-08]
[1762431555500,147.65297542,158.75,158.74,1e-08]
[1762431555701,146.97297542,158.75,158.74,1e-08]
[1762431555912,126.38097542,158.75,158.74,1e-08]
[1762431556719,120.08176283,158.75,158.74,0.71000001]
[1762431556899,112.74176283,158.75,158.74,0.71000001]
[1762431557223,120.08176283,158.75,158.74,0.71000001]
[1762431557437,104.7,158.75,158.74,0.71000001]
[1762431557594,112.04,158.75,158.74,0.71000001]
[1762431558299,50.0,158.85,158.75,9.78882769]
[1762431558621,50.0,158.87,158.74,35.64337226]
[1762431558622,0.68,158.83,158.74,21.30200001]
[1762431558801,8.04176283,158.77,158.74,1e-08]
[1762431559120,7.34,158.76,158.74,6.29960845]
[1762431559492,7.34,158.76,158.74,1e-08]
[1762431559921,15.38176283,158.76,158.74,1e-08]
[1762431560117,7.34,158.76,158.74,1e-08]
[1762431562512,0.68,158.78,158.74,1e-08]
[1762431562513,8.04176283,158.78,158.74,1e-08]
[1762431562915,28.63376283,158.82,158.75,8.04176283]
[1762431563220,28.63376283,158.82,158.74,1e-08]
[1762431563221,7.36,158.83,158.78,28.63376283]
[1762431563424,7.36,158.83,158.78,8.04176283]
[1762431563726,16.08176283,158.83,158.77,17.83059052]
[1762431564030,15.40176283,158.83,158.77,17.83059052]
[1762431564229,15.40176283,158.83,158.78,6.29802242]
[1762431564426,7.36,158.82,158.78,6.29802242]
[1762431564612,7.36,158.82,158.78,22.04307847]
[1762431565118,7.36,158.82,158.77,24.12894868]
[1762431565305,8.04176283,158.81,158.77,6.29835816]
[1762431565704,16.08176283,158.82,158.77,6.29835816]
[1762431566226,7.36,158.82,158.77,30.08616873]
[1762431566430,7.36,158.82,158.78,5.7208551]
[1762431566723,7.36,158.81,158.8,5.7208551]
[1762431567026,7.36,158.81,158.76,6.29871545]
[1762431567221,7.36,158.81,158.76,12.01957055]
[1762431567931,7.36,158.81,158.76,27.7666101]
[1762431568430,7.36,158.81,158.76,22.045755]
[1762431569229,5.7208551,158.82,158.76,22.045755]
[1762431569533,7.36,158.83,158.78,15.50968279]
[1762431570213,8.04,158.83,158.78,9.78882769]
[1762431570533,7.36,158.83,158.79,6.29762579]
[1762431572007,7.36,158.83,158.77,26.89033529]
[1762431572008,6.4008551,158.82,158.77,26.89033529]
[1762431572218,5.7208551,158.81,158.77,26.89033529]
[1762431572420,7.36,158.8,158.77,26.89033529]
[1762431573016,13.7608551,158.8,158.76,6.29869067]
[1762431575411,6.4008551,158.79,158.75,6.2991199]
[1762431575829,6.4008551,158.79,158.74,5.72085511]
[1762431575830,111.1008551,158.78,158.74,1e-08]
[1762431576210,7.36,158.77,158.74,1e-08]
[1762431576409,104.7,158.76,158.74,1e-08]
[1762431577015,104.7,158.76,158.74,6.29959815]
[1762431578738,104.7,158.76,158.74,12.02045325]
[1762431578921,104.7,158.76,158.75,5.7208551]
[1762431579122,104.7,158.76,158.75,12.02006769]
[1762431580037,104.7,158.76,158.74,5.72085511]
[1762431580340,104.7,158.76,158.74,21.80917057]
[1762431583538,104.7,158.76,158.74,16.08831547]
[1762431583722,104.7,158.76,158.74,21.80917057]
[1762431584519,104.7,158.76,158.75,5.7208551]
[1762431584844,104.7,158.76,158.75,15.50968279]
[1762431585022,7.36,158.77,158.75,15.50968279]
[1762431585216,7.36,158.77,158.76,12.01967092]
[1762431585432,7.34,158.79,158.77,9.78882769]
[1762431587433,7.34,158.79,158.78,6.29802242]
[1762431591929,8.03,158.79,158.74,15.74870826]
[1762431592129,8.03,158.79,158.75,9.78882769]
[1762431592130,0.69,158.78,158.75,9.78882769]
[1762431592447,0.69,158.78,158.75,34.03324611]
[1762431592641,112.04,158.79,158.76,2.19717434]
[1762431593850,112.71,158.79,158.75,34.03324611]
[1762431594036,112.04,158.79,158.75,34.03324611]
[1762431594438,112.04,158.79,158.76,2.19717434]
[1762431595049,112.04,158.79,158.77,6.29841909]
[1762431597025,104.7,158.84,158.77,8.49559343]
[1762431597251,112.71,158.84,158.77,6.29841909]
[1762431597457,2.19717434,158.82,158.77,6.29841909]
[1762431597753,9.53717434,158.81,158.77,6.29841909]
[1762431597956,7.34,158.81,158.77,6.29841909]
[1762431598247,0.67,158.8,158.77,6.29841909]
[1762431598639,0.67,158.8,158.76,16.08764351]
[1762431599044,0.67,158.8,158.76,31.83468306]
[1762431599838,0.67,158.8,158.76,34.0318574]
[1762431600068,0.67,158.83,158.79,2.19717434]
[1762431600358,8.01,158.82,158.78,20.592]
[1762431600655,2.19717434,158.8,158.74,6.29938199]
[1762431600854,7.36,158.79,158.74,8.49655633]
[1762431601059,8.03,158.79,158.75,11.98600203]
[1762431601358,7.36,158.8,158.78,11.98600203]
[1762431601862,8.03,158.8,158.78,11.98600203]
[1762431602033,8.03,158.8,158.77,2.19717434]
[1762431602233,0.67,158.79,158.77,22.78917434]
[1762431602438,0.67,158.79,158.76,11.98600203]
[1762431602766,0.67,158.79,158.76,6.29881582]
[1762431602937,7.36,158.8,158.76,8.49599016]
[1762431603135,0.67,158.79,158.76,8.49599016]
[1762431603333,0.67,158.79,158.76,6.29881582]
[1762431604461,105.37,158.79,158.76,6.29881582]
[1762431604650,105.37,158.79,158.74,22.78917435]
[1762431604958,0.67,158.78,158.74,22.78917435]
[1762431605160,7.36,158.77,158.74,22.78917435]
[1762431605358,7.36,158.77,158.75,8.49629728]
[1762431606049,8.03,158.77,158.75,8.49629728]
[1762431607873,104.7,158.79,158.76,2.19717434]
[1762431608181,112.04,158.79,158.78,6.29802242]
[1762431608354,112.04,158.79,158.78,8.49519676]
[1762431609685,0.67,158.81,158.78,8.49519676]
[1762431609842,50.2,158.95,158.82,20.592]
[1762431610049,50.2,158.95,158.8,31.5778717]
[1762431610050,8.03,158.91,158.87,9.78882769]
[1762431610347,2.19717434,158.9,158.85,2.19717434]
[1762431610544,2.19717434,158.9,158.83,22.03613926]
[1762431610545,2.19717434,158.89,158.83,22.03613926]
[1762431610741,9.55717434,158.88,158.83,24.2333136]
[1762431610937,0.67,158.87,158.83,18.28204182]
[1762431611150,0.67,158.87,158.84,2.19717434]
[1762431611364,8.03,158.88,158.86,2.19717434]
[1762431611560,7.36,158.88,158.86,2.19717434]
[1762431611743,8.03,158.88,158.86,2.19717434]
[1762431612651,7.36,158.88,158.86,2.19717434]
[1762431612854,0.67,158.87,158.86,2.19717434]
[1762431613662,0.67,158.87,158.85,2.19717434]
[1762431614337,0.67,158.87,158.84,8.49281775]
[1762431614540,0.67,158.87,158.84,18.28164544]
[1762431614747,0.67,158.87,158.84,6.29564341]
[1762431614949,2.19717434,158.85,158.8,9.78882769]
[1762431615162,2.19717434,158.85,158.74,31.49638974]
[1762431615163,9.55717434,158.84,158.78,2.19717434]
[1762431615358,9.55717434,158.84,158.78,22.78917434]
[1762431615566,0.67,158.83,158.78,2.19717434]
[1762431615756,0.67,158.83,158.8,20.592]
[1762431617473,0.67,158.83,158.77,18.28430705]
[1762431617660,2.19717434,158.82,158.77,6.29830502]
[1762431618092,0.67,158.81,158.77,6.29830502]
[1762431618374,7.36,158.8,158.77,6.29830502]
[1762431618738,0.67,158.79,158.76,22.78917434]
[1762431619070,0.67,158.79,158.75,27.73331375]
[1762431619554,0.67,158.79,158.76,6.29879717]
[1762431619868,7.36,158.8,158.76,6.29879717]
[1762431620242,7.36,158.8,158.77,9.78882769]
[1762431620442,7.36,158.8,158.78,2.19717434]
[1762431620642,2.86717434,158.79,158.75,9.78882769]
[1762431620863,104.7,158.78,158.74,29.08841233]
[1762431621066,105.37,158.78,158.74,29.08841233]
[1762431621570,105.37,158.78,158.75,2.19717434]
[1762431621768,0.67,158.77,158.74,29.08841233]
[1762431622180,112.06,158.78,158.75,2.19717434]
[1762431622385,112.74,158.78,158.75,2.19717434]
[1762431623102,112.06,158.78,158.76,2.19717434]
[1762431623278,112.06,158.78,158.77,9.78882769]
[1762431623879,112.06,158.78,158.77,30.38082769]
[1762431624389,112.06,158.78,158.77,36.67924678]
[1762431624980,112.74,158.78,158.76,6.29877381]
[1762431626490,112.74,158.78,158.75,6.29921259]
[1762431626676,112.74,158.78,158.75,9.73267117]
[1762431629673,0.68,158.77,158.74,19.52184054]
[1762431629982,8.04,158.77,158.74,16.08838196]
[1762431630180,8.04,158.77,158.74,19.52184054]
[1762431632508,8.04,158.77,158.74,16.08838196]
[1762431633589,8.04,158.77,158.74,19.52184054]
[1762431633890,7.36,158.77,158.75,3.43345858]
[1762431634685,8.04,158.77,158.75,3.43345858]
[1762431635074,8.04,158.77,158.74,35.2708641]
[1762431635478,8.04,158.77,158.74,31.83740552]
[1762431635681,8.04,158.77,158.74,35.2708641]
[1762431636907,0.7,158.76,158.74,1e-08]
[1762431637084,7.34,158.75,158.74,1e-08]
[1762431637598,8.04,158.75,158.74,1e-08]
[1762431644921,11.47345858,158.75,158.74,1e-08]
[1762431645092,17.77267117,158.75,158.74,1e-08]
[1762431645286,38.36467117,158.75,158.74,1e-08]
[1762431646120,28.632,158.75,158.74,1e-08]
[1762431646286,31.02467117,158.75,158.74,1e-08]
[1762431646486,38.36467117,158.75,158.74,1e-08]
[1762431646981,17.77267117,158.75,158.74,1e-08]
[1762431647185,27.56149886,158.75,158.74,1e-08]
[1762431647587,10.43267117,158.75,158.74,1e-08]
[1762431647902,17.77267117,158.75,158.74,1e-08]
[1762431653992,10.43267117,158.75,158.74,1e-08]
[1762431654186,17.77267117,158.75,158.74,1e-08]
[1762431654392,104.69999999,158.72,158.65,6.30308038]
[1762431654696,3.43345858,158.7,158.65,6.30308038]
[1762431654897,7.34,158.69,158.65,6.30308038]
[1762431655096,8.05,158.69,158.65,6.30308038]
[1762431655399,8.05,158.69,158.64,3.43345858]
[1762431655400,0.71,158.68,158.64,5.80347611]
[1762431655707,112.03999999,158.67,158.64,5.80347611]
[1762431657508,112.03999999,158.67,158.64,9.23693469]
[1762431657699,112.03999999,158.67,158.65,9.73641302]
[1762431657904,112.03999999,158.67,158.65,6.30295444]
[1762431658104,112.74999999,158.67,158.64,9.73690637]
[1762431659015,112.74999999,158.67,158.64,6.30344779]
[1762431659217,112.03999999,158.67,158.64,6.30344779]
[1762431659520,112.03999999,158.67,158.64,9.73690637]
[1762431660312,112.74999999,158.67,158.64,6.30344779]
[1762431660814,112.03999999,158.67,158.64,9.73690637]
[1762431661904,112.03999999,158.67,158.63,9.78882769]
[1762431661905,0.71,158.66,158.63,24.02545858]
[1762431662102,7.34,158.65,158.63,20.592]
[1762431662298,7.34,158.65,158.62,3.43345858]
[1762431662502,8.05,158.65,158.62,3.43345858]
[1762431662692,0.71,158.64,158.61,9.73823129]
[1762431662889,7.34,158.63,158.61,6.30477271]
[1762431663105,3.43345858,158.62,158.6,0.1]
[1762431663319,7.34,158.61,158.6,0.1]
[1762431663511,8.05,158.61,158.6,0.1]
[1762431664411,11.48345858,158.61,158.6,0.1]
[1762431664612,17.78823129,158.61,158.6,0.1]
[1762431664918,11.48345858,158.61,158.6,0.1]
[1762431665095,17.78823129,158.61,158.6,0.1]
[1762431665713,31.04023129,158.61,158.6,0.1]
[1762431666102,38.38023129,158.61,158.6,0.1]
[1762431666618,17.78823129,158.61,158.6,0.1]
[1762431666814,120.592,158.6,158.59,0.1]
[1762431667018,132.07545858,158.6,158.59,0.1]
[1762431667198,124.73545858,158.6,158.59,0.1]
[1762431667598,111.48345858,158.6,158.59,0.1]
[1762431667801,20.592,158.56,158.4,1.99999999]
[1762431668092,8.05,158.55,158.5,3.43345858]
[1762431668293,8.05,158.54,158.5,3.43345858]
[1762431668513,3.43345858,158.56,158.5,3.43345858]
[1762431668910,3.43345858,158.54,158.49,3.43345858]
[1762431669106,0.71,158.53,158.49,3.43345858]
[1762431669824,7.34,158.52,158.5,6.30914826]
[1762431670209,0.71,158.58,158.51,30.38082769]
[1762431670400,7.34,158.57,158.55,3.43345858]
[1762431670602,3.43345858,158.57,158.51,30.38082769]
[1762431670922,7.36,158.56,158.54,3.43345858]
[1762431671221,7.36,158.57,158.55,3.43345858]
[1762431671398,7.36,158.57,158.56,3.43345858]
[1762431671604,4.14345858,158.62,158.56,3.43345858]
[1762431671906,4.14345858,158.62,158.58,6.30596544]
[1762431671907,3.43345858,158.62,158.58,6.30596544]
[1762431672115,4.14345858,158.62,158.58,6.30596544]
[1762431672419,8.07,158.61,158.58,6.30596544]
[1762431672629,7.36,158.6,158.57,6.30628107]
[1762431672830,4.14345858,158.6,158.55,30.33226716]
[1762431673016,8.07,158.59,158.55,26.89880858]
[1762431673328,4.14345858,158.59,158.55,26.89915752]
[1762431673498,8.07,158.58,158.55,26.89915752]
[1762431674102,3.43345858,158.56,158.51,3.43345858]
[1762431674302,7.36,158.55,158.51,35.30281536]
[1762431674528,0.71,158.56,158.52,3.43345858]
[1762431674730,0.71,158.58,158.54,3.43345858]
[1762431675026,7.36,158.57,158.53,3.43345858]
[1762431675201,7.36,158.56,158.52,3.43345858]
[1762431675405,3.43345858,158.56,158.51,6.3086535]
[1762431675628,8.07,158.55,158.51,9.74211208]
[1762431675933,0.71,158.55,158.51,9.74211208]
[1762431676103,3.43345858,158.56,158.51,9.74211208]
[1762431676104,8.07,158.54,158.51,9.74211208]
[1762431676430,7.36,158.53,158.51,9.74211208]
[1762431677134,7.36,158.53,158.51,3.43345858]
[1762431677847,0.71,158.54,158.5,9.74260684]
[1762431678302,7.36,158.53,158.5,9.74260684]
[1762431678726,7.36,158.53,158.51,3.43345858]
[1762431679034,104.7,158.56,158.53,6.30795433]
[1762431679206,0.71,158.55,158.52,6.308324]
[1762431679409,7.36,158.54,158.5,6.30914826]
[1762431679717,104.7,158.56,158.51,3.43345858]
[1762431680031,0.71,158.55,158.51,13.22228627]
[1762431680434,8.07,158.55,158.51,13.22228627]
[1762431681612,0.71,158.55,158.52,6.30835225]
[1762431681927,8.07,158.55,158.52,6.30835225]
[1762431682128,0.71,158.55,158.52,6.30835225]
[1762431682518,7.36,158.54,158.52,6.30835225]
[1762431682718,0.71,158.55,158.52,6.30835225]
[1762431682908,7.36,158.54,158.52,6.30835225]
[1762431683229,4.14345858,158.55,158.48,15.77474667]
[1762431683428,0.72,158.55,158.5,3.43345858]
[1762431683628,8.08,158.54,158.51,6.30875023]
[1762431684132,7.36,158.53,158.51,6.30875023]
[1762431684503,7.36,158.53,158.51,9.74220881]
[1762431684934,0.72,158.54,158.51,9.74220881]
[1762431685130,50.0,158.59,158.52,24.02545858]
[1762431685336,7.36,158.6,158.56,3.43345858]
[1762431685511,0.72,158.61,158.56,3.43345858]
[1762431686122,0.72,158.61,158.57,3.43345858]
[1762431686319,0.72,158.61,158.58,3.43345858]
[1762431686512,7.36,158.6,158.57,20.592]
[1762431686729,0.72,158.61,158.57,30.33163861]
[1762431686931,108.13345858,158.62,158.57,30.33163861]
[1762431686932,0.72,158.6,158.57,30.33163861]
[1762431687236,104.7,158.62,158.59,3.43345858]
[1762431687535,104.7,158.62,158.61,3.43345858]
[1762431687731,0.72,158.67,158.62,9.78882769]
[1762431687936,0.72,158.69,158.62,9.78882769]
[1762431688157,0.72,158.69,158.65,3.43345858]
[1762431688354,0.72,158.71,158.67,2.20000765]
[1762431688540,0.72,158.73,158.68,2.20000765]
[1762431688844,9.58000765,158.73,158.68,9.78882769]
[1762431689137,2.92000765,158.72,158.66,11.98883534]
[1762431689312,2.92000765,158.72,158.66,9.78882769]
[1762431689313,0.72,158.72,158.66,9.78882769]
[1762431689521,7.38,158.71,158.68,2.20000765]
[1762431689835,0.72,158.72,158.64,20.592]
[1762431689836,7.38,158.7,158.64,20.592]
[1762431690020,2.20000765,158.68,158.64,20.592]
[1762431690344,5.7304502,158.7,158.65,9.78882769]
[1762431690817,8.1,158.69,158.65,16.09195421]
[1762431691012,6.4504502,158.69,158.65,9.78882769]
[1762431691217,26.89246495,158.72,158.64,26.3224502]
[1762431691218,5.7304502,158.67,158.64,20.592]
[1762431691442,5.7304502,158.67,158.62,12.03477595]
[1762431691626,0.72,158.66,158.62,12.03477595]
[1762431692115,0.72,158.66,158.63,5.7304502]
[1762431692311,8.1,158.66,158.63,5.7304502]
[1762431692534,8.1,158.66,158.63,12.03432972]
[1762431692940,7.38,158.66,158.63,12.03432972]
[1762431693123,8.1,158.66,158.63,12.03432972]
[1762431694250,0.72,158.66,158.63,12.03432972]
[1762431694722,8.1,158.66,158.63,12.03432972]
[1762431694929,8.1,158.66,158.62,12.03475618]
[1762431696120,20.592,158.6,158.46,31.5537044]
[1762431696335,5.7304502,158.56,158.47,0.67]
[1762431696534,5.7304502,158.54,158.47,0.67]
[1762431696844,5.7304502,158.52,158.47,5.7304502]
[1762431697046,7.44,158.51,158.47,5.7304502]
[1762431697254,7.44,158.51,158.48,0.7]
[1762431697549,7.44,158.53,158.49,5.7304502]
[1762431698050,7.44,158.53,158.5,0.7]
[1762431698748,8.11,158.53,158.48,12.0403078]
[1762431698954,7.44,158.53,158.5,6.4304502]
[1762431699327,7.44,158.53,158.51,0.7]
[1762431700041,7.44,158.53,158.5,9.78882769]
[1762431700244,7.44,158.53,158.5,10.48882769]
[1762431700446,7.44,158.53,158.51,0.7]
[1762431700659,7.44,158.54,158.51,0.7]
[1762431702153,5.7304502,158.55,158.51,0.7]
[1762431702353,7.44,158.54,158.51,0.7]
[1762431702727,5.7304502,158.56,158.51,7.00854169]
[1762431702933,5.7304502,158.54,158.51,20.592]
[1762431703144,6.4004502,158.55,158.51,20.592]
[1762431703456,7.44,158.54,158.51,20.592]
[1762431703659,5.7304502,158.53,158.48,6.30994447]
[1762431703834,0.67,158.53,158.48,26.90194447]
[1762431704037,0.67,158.53,158.49,7.0094015]
[1762431704038,6.4004502,158.53,158.49,7.0094015]
[1762431704342,7.44,158.52,158.49,7.0094015]
[1762431704538,0.67,158.52,158.48,20.592]
[1762431704747,5.7304502,158.5,158.46,9.78882769]
[1762431704933,5.7304502,158.5,158.46,16.09955743]
[1762431705132,13.8404502,158.5,158.46,16.09955743]
[1762431705335,7.44,158.5,158.47,0.7]
[1762431705543,5.7304502,158.53,158.47,6.4304502]
[1762431705866,7.44,158.52,158.47,6.4304502]
[1762431706268,7.44,158.52,158.49,9.78882769]
[1762431706564,7.44,158.53,158.49,9.78882769]
[1762431706765,7.44,158.53,158.49,16.21927789]
[1762431707068,6.4004502,158.55,158.5,0.7]
[1762431707570,0.67,158.54,158.5,0.7]
[1762431708248,7.44,158.53,158.5,7.00896402]
[1762431708431,7.44,158.53,158.5,0.7]
[1762431708628,8.11,158.53,158.49,10.48882769]
[1762431709147,5.7304502,158.54,158.5,0.7]
[1762431709347,7.42,158.53,158.5,6.4304502]
[1762431709646,5.7304502,158.55,158.51,0.7]
[1762431709845,7.42,158.54,158.51,0.7]
[1762431710247,0.67,158.54,158.5,5.7304502]
[1762431710447,12.03761899,158.55,158.5,5.7304502]
[1762431710655,0.67,158.53,158.5,5.7304502]
[1762431711459,6.4004502,158.55,158.51,0.7]
[1762431711767,7.42,158.55,158.51,6.4304502]
[1762431711954,5.7304502,158.56,158.51,6.4304502]
[1762431712162,0.66,158.56,158.52,5.7304502]
[1762431712359,0.66,158.56,158.52,8.51233993]
[1762431712666,7.42,158.55,158.52,8.51233993]
[1762431713464,7.42,158.55,158.52,6.30835225]
[1762431713644,8.08,158.55,158.51,9.21265158]
[1762431713839,0.66,158.55,158.51,9.21265158]
[1762431714045,7.42,158.54,158.51,8.51265158]
[1762431714244,7.42,158.54,158.52,0.71]
[1762431714469,7.42,158.54,158.52,7.01834047]
[1762431714766,6.40050984,158.56,158.51,21.83797977]
[1762431714962,0.66,158.55,158.51,12.75915208]
[1762431715266,5.74050984,158.54,158.49,12.76005618]
[1762431715455,7.42,158.53,158.49,12.76005618]
[1762431715674,8.08,158.53,158.49,12.76005618]
[1762431716868,0.66,158.53,158.49,12.05005618]
[1762431717071,7.42,158.52,158.49,6.30954634]
[1762431717668,8.08,158.52,158.49,6.30954634]
[1762431717886,0.66,158.51,158.47,27.04250984]
[1762431718251,7.42,158.5,158.48,16.23933753]
[1762431718458,7.42,158.51,158.48,16.23933753]
[1762431719493,112.78,158.57,158.51,9.78882769]
[1762431719783,111.10050984,158.57,158.51,9.78882769]
[1762431719984,0.66,158.56,158.52,5.74050984]
[1762431720196,7.42,158.55,158.52,5.74050984]
[1762431720360,0.66,158.56,158.52,6.45050984]
[1762431720559,104.7,158.57,158.54,5.74050984]
[1762431720962,7.42,158.56,158.54,6.45050984]
[1762431721177,104.7,158.57,158.55,5.74050984]
[1762431721377,104.7,158.57,158.55,12.75745209]
[1762431721782,104.7,158.57,158.55,12.04745209]
[1762431721961,112.12,158.57,158.55,5.74050984]
[1762431722172,112.12,158.57,158.55,12.04762646]
[1762431722380,104.7,158.57,158.55,12.04762646]
[1762431722564,104.7,158.57,158.55,12.75762646]
[1762431722964,104.7,158.61,158.56,6.45050984]
[1762431723286,105.36,158.66,158.6,5.74050984]
[1762431723481,105.36,158.66,158.61,6.30477271]
[1762431723482,111.10050984,158.66,158.61,6.30477271]
[1762431723678,111.10050984,158.66,158.61,12.04528255]
[1762431723887,8.08,158.65,158.61,12.04528255]
[1762431724276,0.66,158.64,158.61,12.04528255]
[1762431724993,0.66,158.64,158.57,9.78882769]
[1762431724994,5.74050984,158.63,158.57,25.55455461]
[1762431725174,7.42,158.62,158.58,5.74050984]
[1762431725372,7.42,158.61,158.58,6.30596544]
[1762431725589,7.42,158.6,158.56,5.74050984]
[1762431725774,7.42,158.6,158.54,6.30755645]
[1762431725775,5.74050984,158.59,158.54,6.30755645]
[1762431725972,5.74050984,158.6,158.55,6.45050984]
[1762431726162,6.40050984,158.62,158.57,5.74050984]
[1762431726363,7.42,158.61,158.57,5.74050984]
[1762431726570,7.42,158.6,158.57,6.45050984]
[1762431726770,0.66,158.6,158.56,5.74050984]
[1762431726986,7.42,158.59,158.56,5.74050984]
[1762431727299,5.74050984,158.61,158.57,0.71]
[1762431727500,6.40050984,158.6,158.55,9.78882769]
[1762431727662,7.42,158.59,158.55,10.49882769]
[1762431727863,0.66,158.59,158.55,16.23933753]
[1762431728074,7.42,158.58,158.55,16.23933753]
[1762431728290,7.42,158.58,158.55,5.74050984]
[1762431728501,105.36,158.57,158.53,5.74050984]
[1762431728703,105.36,158.57,158.52,6.30835225]
[1762431728704,13.16050984,158.56,158.52,6.30835225]
[1762431729006,6.40050984,158.56,158.52,0.71]
[1762431729213,104.7,158.57,158.53,6.45050984]
[1762431729367,104.7,158.57,158.55,5.74050984]
[1762431729873,104.7,158.57,158.54,12.75806629]
[1762431730712,112.12,158.57,158.54,12.75806629]
[1762431731386,104.7,158.57,158.54,12.75806629]
[1762431731770,104.7,158.57,158.55,6.45050984]
[1762431731997,104.7,158.57,158.56,5.74050984]
[1762431732176,104.7,158.57,158.56,6.45050984]
[1762431732684,104.7,158.57,158.56,5.74050984]
[1762431732883,104.7,158.57,158.54,12.75806629]
[1762431733071,112.12,158.57,158.54,12.75806629]
[1762431734397,112.12,158.57,158.53,6.30767301]
[1762431734608,0.66,158.56,158.52,12.70212821]
[1762431734817,7.42,158.55,158.52,12.70212821]
[1762431735014,7.42,158.55,158.52,10.49882769]
[1762431735201,7.42,158.55,158.52,16.80706155]
[1762431735384,7.42,158.55,158.52,19.01036207]
[1762431735581,7.42,158.55,158.52,18.30036207]
[1762431735780,7.42,158.55,158.54,2.20330052]
[1762431735985,7.42,158.55,158.53,2.91330052]
[1762431736416,105.36,158.57,158.53,12.04650907]
[1762431736616,13.81856509,158.56,158.52,6.30822936]
[1762431736785,6.39856509,158.56,158.52,6.30822936]
[1762431737113,7.42,158.55,158.52,6.30822936]
[1762431737413,8.08,158.55,158.51,6.30870699]
[1762431737598,6.39856509,158.54,158.49,12.04775895]
[1762431737796,111.00638004,158.57,158.48,16.09871359]
[1762431737797,13.81856509,158.53,158.48,16.09871359]
[1762431737986,117.85856509,158.52,158.48,6.3098859]
[1762431738191,7.42,158.51,158.48,6.3098859]
[1762431738404,0.66,158.51,158.46,0.71]
[1762431738707,8.08,158.5,158.46,5.73856509]
[1762431738910,7.42,158.49,158.46,5.73856509]
[1762431739896,7.42,158.49,158.44,6.31153749]
[1762431739897,0.66,158.48,158.44,6.31153749]
[1762431740210,7.42,158.47,158.43,12.05045595]
[1762431740414,0.66,158.47,158.43,12.05045595]
[1762431740599,7.42,158.46,158.43,12.05045595]
[1762431741188,7.42,158.46,158.42,12.15088372]
[1762431741189,7.42,158.45,158.42,12.15088372]
[1762431741611,7.42,158.45,158.42,12.86088372]
[1762431741915,7.42,158.44,158.42,12.86088372]